[Event "World Women Teams Championship"]
[Site "Sitges, Spain"]
[Date "2021.09.27"]
[Round "1.7"]
[White "Benmesbah Natacha (FRA)"]
[Black "Sargsyan Anna M. (ARM)"]
[Result "0-1"]
[TimeControl "40+10"]
[WhiteElo "2193"]
[BlackElo "2283"]

1. e4 {[%clk 00:45:18]} {[%emt 00:00:01]} e5 {[%clk 00:45:11]} {[%emt
00:00:09]} 2. Nf3 {[%clk 00:45:23]} {[%emt 00:00:04]} Nc6 {[%clk 00:45:07]}
{[%emt 00:00:15]} 3. Bc4 {[%clk 00:45:29]} {[%emt 00:00:04]} Bc5 {[%clk
00:45:13]} {[%emt 00:00:04]} 4. c3 {[%clk 00:45:36]} {[%emt 00:00:03]} Nf6
{[%clk 00:45:15]} {[%emt 00:00:07]} 5. d3 {[%clk 00:45:45]} {[%emt 00:00:02]}
d6 {[%clk 00:45:17]} {[%emt 00:00:08]} 6. O-O {[%clk 00:45:10]} {[%emt
00:00:45]} a6 {[%clk 00:45:21]} {[%emt 00:00:06]} 7. a4 {[%clk 00:44:53]}
{[%emt 00:00:27]} h6 {[%clk 00:45:24]} {[%emt 00:00:07]} 8. Nbd2 {[%clk
00:41:26]} {[%emt 00:03:37]} O-O {[%clk 00:45:23]} {[%emt 00:00:10]} 9. h3
{[%clk 00:41:06]} {[%emt 00:00:31]} Be6 {[%clk 00:45:14]} {[%emt 00:00:18]} 10.
Re1 {[%clk 00:39:10]} {[%emt 00:02:07]} Re8 {[%clk 00:45:14]} {[%emt 00:00:10]}
11. b4 {[%clk 00:35:49]} {[%emt 00:03:31]} Ba7 {[%clk 00:43:30]} {[%emt
00:01:52]} 12. Bxe6 {[%clk 00:33:21]} {[%emt 00:02:40]} Rxe6 {[%clk 00:43:03]}
{[%emt 00:00:37]} 13. Qc2 {[%clk 00:31:48]} {[%emt 00:01:43]} d5 {[%clk
00:42:35]} {[%emt 00:00:38]} 14. Nf1 {[%clk 00:29:33]} {[%emt 00:02:25]} Qd7
{[%clk 00:38:31]} {[%emt 00:04:13]} 15. Rb1 {[%clk 00:27:35]} {[%emt 00:02:09]}
Rd8 {[%clk 00:38:31]} {[%emt 00:00:09]} 16. b5 {[%clk 00:24:22]} {[%emt
00:03:24]} axb5 {[%clk 00:35:37]} {[%emt 00:03:03]} 17. axb5 {[%clk 00:23:57]}
{[%emt 00:00:35]} Ne7 {[%clk 00:35:15]} {[%emt 00:00:32]} 18. exd5 {[%clk
00:18:23]} {[%emt 00:05:45]} Qxd5 {[%clk 00:35:13]} {[%emt 00:00:11]} 19. Ne3
{[%clk 00:18:30]} {[%emt 00:00:04]} Qd7 {[%clk 00:34:04]} {[%emt 00:01:18]} 20.
Ba3 {[%clk 00:17:28]} {[%emt 00:01:13]} Ng6 {[%clk 00:34:00]} {[%emt 00:00:13]}
21. g3 {[%clk 00:17:20]} {[%emt 00:00:19]} Bxe3 {[%clk 00:32:07]} {[%emt
00:02:02]} 22. Rxe3 {[%clk 00:17:21]} {[%emt 00:00:10]} Nd5 {[%clk 00:32:10]}
{[%emt 00:00:06]} 23. Ree1 {[%clk 00:16:55]} {[%emt 00:00:37]} Rf6 {[%clk
00:27:18]} {[%emt 00:05:03]} 24. Nxe5 {[%clk 00:16:10]} {[%emt 00:00:54]} Qxh3
{[%clk 00:27:23]} {[%emt 00:00:04]} 25. Nxg6 {[%clk 00:15:21]} {[%emt
00:01:00]} Rxg6 {[%clk 00:27:30]} {[%emt 00:00:03]} 26. Re4 {[%clk 00:14:28]}
{[%emt 00:01:02]} Nf6 {[%clk 00:27:20]} {[%emt 00:00:19]} 27. Rf4 {[%clk
00:12:21]} {[%emt 00:02:19]} Ng4 {[%clk 00:27:25]} {[%emt 00:00:05]} 28. Re1
{[%clk 00:09:16]} {[%emt 00:03:14]} Nxf2 {[%clk 00:27:13]} {[%emt 00:00:23]} 29.
Rxf2 {[%clk 00:08:58]} {[%emt 00:00:28]} Qxg3+ {[%clk 00:27:19]} {[%emt
00:00:03]} 30. Kf1 {[%clk 00:08:38]} {[%emt 00:00:30]} Qg1+ {[%clk 00:27:25]}
{[%emt 00:00:03]} 31. Ke2 {[%clk 00:08:46]} {[%emt 00:00:03]} Re8+ {[%clk
00:27:33]} {[%emt 00:00:02]} 0-1

[Event "World Women Teams Championship"]
[Site "Sitges, Spain"]
[Date "2021.09.27"]
[Round "1.8"]
[White "Gaboyan Susanna (ARM)"]
[Black "Alexieva Silvia (FRA)"]
[Result "1/2-1/2"]
[TimeControl "40+10"]
[WhiteElo "2083"]
[BlackElo "2277"]

1. Nf3 {[%clk 00:45:16]} {[%emt 00:00:04]} d5 {[%clk 00:45:15]} {[%emt
00:00:05]} 2. g3 {[%clk 00:45:18]} {[%emt 00:00:07]} c6 {[%clk 00:44:58]}
{[%emt 00:00:28]} 3. Bg2 {[%clk 00:45:24]} {[%emt 00:00:03]} Nd7 {[%clk
00:45:00]} {[%emt 00:00:09]} 4. O-O {[%clk 00:45:11]} {[%emt 00:00:22]} e5
{[%emt 00:00:26]} 5. d3 {[%clk 00:45:14]} {[%emt 00:00:02]} Ngf6 {[%clk
00:44:47]} {[%emt 00:00:14]} 6. Nbd2 {[%clk 00:45:15]} {[%emt 00:00:08]} Bc5
{[%clk 00:44:08]} {[%emt 00:00:49]} 7. e4 {[%clk 00:45:01]} {[%emt 00:00:24]}
dxe4 {[%clk 00:43:29]} {[%emt 00:00:49]} 8. dxe4 {[%emt 00:00:49]} O-O {[%emt
00:00:38]} 9. Qe2 {[%emt 00:00:49]} Qc7 {[%clk 00:41:11]} {[%emt 00:00:38]} 10.
c3 {[%clk 00:44:54]} {[%emt 00:00:21]} a5 {[%emt 00:07:46]} 11. a4 {[%clk
00:37:35]} {[%emt 00:01:26]} b6 {[%emt 00:00:36]} 12. Nc4 {[%emt 00:01:24]} Ba6
{[%emt 00:09:45]} 13. Bg5 {[%emt 00:02:13]} Rfe8 {[%emt 00:02:36]} 14. Nfd2
{[%emt 00:00:52]} h6 {[%clk 00:36:09]} {[%emt 00:00:06]} 15. Be3 {[%clk
00:24:38]} {[%emt 00:00:14]} Rad8 {[%clk 00:34:16]} {[%emt 00:03:34]} 16. Rfb1
{[%emt 00:10:56]} Bxe3 {[%clk 00:23:29]} {[%emt 00:00:11]} 17. Qxe3 {[%emt
00:00:18]} Nc5 {[%emt 00:09:29]} 18. Bf1 {[%emt 00:06:58]} Nfd7 {[%emt
00:01:16]} 19. b4 {[%emt 00:00:47]} axb4 {[%clk 00:16:43]} {[%emt 00:00:22]} 20.
Rxb4 {[%clk 00:11:17]} {[%emt 00:00:35]} b5 {[%clk 00:16:15]} {[%emt 00:00:39]}
21. Nb2 {[%clk 00:09:15]} {[%emt 00:02:11]} Rb8 {[%clk 00:14:29]} {[%emt
00:01:56]} 22. Nd3 {[%emt 00:01:06]} Nxa4 {[%emt 00:04:18]} 23. c4 {[%clk
00:02:03]} {[%emt 00:00:42]} Ra8 24. cxb5 {[%emt 00:06:16]} Bxb5 {[%clk
00:09:58]} {[%emt 00:00:21]} 25. Rc1 {[%clk 00:01:27]} {[%emt 00:00:46]} Qd6
{[%clk 00:09:25]} {[%emt 00:00:43]} 26. Nc4 {[%clk 00:01:35]} {[%emt 00:00:02]}
Qe7 {[%clk 00:09:07]} {[%emt 00:00:28]} 27. Rbb1 {[%clk 00:01:18]} {[%emt
00:00:27]} f6 {[%clk 00:08:32]} {[%emt 00:00:46]} 28. Nb4 {[%emt 00:00:31]}
Nac5 {[%clk 00:06:57]} {[%emt 00:01:21]} 29. Nb6 {[%clk 00:01:21]} {[%emt
00:00:09]} Nxb6 {[%emt 00:01:14]} 30. Bxb5 {[%clk 00:01:24]} {[%emt 00:00:02]}
cxb5 {[%emt 00:00:20]} 31. Qxc5 {[%emt 00:00:09]} Qxc5 {[%clk 00:05:45]} {[%emt
00:00:17]} 32. Rxc5 {[%clk 00:01:29]} {[%emt 00:00:02]} Na4 {[%clk 00:04:48]}
{[%emt 00:01:07]} 33. Rc7 {[%emt 00:00:30]} Rec8 {[%emt 00:00:13]} 34. Nd5
{[%clk 00:01:20]} {[%emt 00:00:14]} Rxc7 {[%clk 00:04:05]} {[%emt 00:00:35]} 35.
Nxc7 {[%clk 00:01:27]} {[%emt 00:00:03]} Rc8 {[%clk 00:03:56]} {[%emt
00:00:18]} 1/2-1/2

[Event "World Women Teams Championship"]
[Site "Sitges, Spain"]
[Date "2021.09.27"]
[Round "1.9"]
[White "Mammadzada Gunay (AZE)"]
[Black "Harika Dronavalli (IND)"]
[Result "0-1"]
[TimeControl "40+10"]
[WhiteElo "2280"]
[BlackElo "2450"]

1. e4 {[%clk 00:45:16]} {[%emt 00:00:04]} e5 {[%clk 00:45:15]} {[%emt
00:00:03]} 2. Nf3 {[%clk 00:45:21]} {[%emt 00:00:08]} Nc6 {[%emt 00:00:05]} 3.
Bb5 {[%clk 00:45:21]} {[%emt 00:00:08]} a6 {[%clk 00:45:28]} {[%emt 00:00:03]}
4. Ba4 {[%clk 00:45:29]} {[%emt 00:00:02]} Nf6 {[%clk 00:45:34]} {[%emt
00:00:04]} 5. O-O {[%clk 00:45:32]} {[%emt 00:00:08]} Bc5 {[%emt 00:00:34]} 6.
c3 {[%clk 00:43:36]} {[%emt 00:01:34]} O-O {[%emt 00:01:36]} 7. d4 {[%clk
00:42:22]} {[%emt 00:01:01]} Ba7 {[%clk 00:44:46]} {[%emt 00:00:02]} 8. Re1
{[%clk 00:40:22]} {[%emt 00:02:11]} b5 {[%emt 00:03:53]} 9. Bc2 {[%clk
00:37:31]} {[%emt 00:00:01]} d6 {[%emt 00:00:44]} 10. h3 {[%emt 00:02:57]} Bb7
{[%emt 00:06:39]} 11. a3 {[%emt 00:06:32]} Re8 {[%emt 00:00:49]} 12. Be3 {[%clk
00:26:13]} {[%emt 00:08:39]} h6 {[%emt 00:03:28]} 13. Nbd2 {[%emt 00:02:58]}
Nb8 {[%emt 00:05:34]} 14. d5 {[%emt 00:01:39]} c6 {[%emt 00:02:22]} 15. c4
{[%clk 00:17:06]} {[%emt 00:00:04]} Nbd7 {[%emt 00:04:02]} 16. b4 {[%emt
00:04:51]} Bxe3 {[%clk 00:16:49]} {[%emt 00:01:09]} 17. Rxe3 {[%emt 00:02:54]}
Rc8 {[%emt 00:06:51]} 18. Nb3 {[%emt 00:06:49]} Nb6 {[%emt 00:04:49]} 19. Nfd2
{[%emt 00:00:43]} Qc7 {[%emt 00:01:16]} 20. c5 {[%emt 00:00:20]} cxd5 {[%emt
00:01:57]} 21. cxb6 {[%clk 00:01:49]} {[%emt 00:00:05]} Qxc2 {[%clk 00:05:41]}
{[%emt 00:00:02]} 22. Na5 {[%emt 00:02:24]} Qxd1+ {[%clk 00:03:30]} {[%emt
00:00:01]} 23. Rxd1 {[%clk 00:00:32]} {[%emt 00:00:49]} Rb8 24. Nxb7 Rxb7
{[%clk 00:02:45]} 25. exd5 {[%emt 00:00:43]} Rxb6 {[%clk 00:02:05]} {[%emt
00:00:08]} 26. Nb3 {[%clk 00:00:44]} {[%emt 00:00:06]} Rc8 {[%emt 00:00:24]} 27.
Rd2 {[%emt 00:01:00]} Rb7 {[%clk 00:01:39]} {[%emt 00:00:04]} 28. Kf1 {[%clk
00:00:20]} {[%emt 00:00:02]} Rbc7 {[%emt 00:00:16]} 29. Na5 {[%emt 00:00:34]}
Rc2 {[%clk 00:01:16]} {[%emt 00:00:05]} 30. Red3 {[%emt 00:01:04]} Rc1+ {[%clk
00:00:38]} 31. Ke2 {[%clk 00:00:14]} {[%emt 00:00:08]} Ne4 {[%clk 00:00:45]}
{[%emt 00:00:02]} 32. Rd1 {[%clk 00:00:13]} {[%emt 00:00:12]} R1c2+ {[%clk
00:00:52]} {[%emt 00:00:03]} 33. Ke3 {[%clk 00:00:11]} {[%emt 00:00:12]} Nxf2
{[%emt 00:00:05]} 34. Ra1 {[%emt 00:00:10]} 0-1

[Event "World Women Teams Championship"]
[Site "Sitges, Spain"]
[Date "2021.09.27"]
[Round "1.10"]
[White "Vaishali R (IND)"]
[Black "Mammadova Gulnar (AZE)"]
[Result "1-0"]
[TimeControl "40+10"]
[WhiteElo "2149"]
[BlackElo "2406"]

1. e4 {[%clk 00:45:07]} {[%emt 00:00:13]} e5 {[%clk 00:45:13]} {[%emt
00:00:08]} 2. Nf3 {[%clk 00:45:14]} {[%emt 00:00:03]} Nf6 {[%clk 00:45:15]}
{[%emt 00:00:08]} 3. Nxe5 {[%clk 00:44:58]} {[%emt 00:00:26]} d6 {[%clk
00:45:16]} {[%emt 00:00:08]} 4. Nf3 {[%clk 00:45:05]} {[%emt 00:00:03]} Nxe4
{[%clk 00:45:22]} {[%emt 00:00:04]} 5. c4 {[%clk 00:44:54]} {[%emt 00:00:21]}
Be7 {[%clk 00:43:43]} {[%emt 00:01:49]} 6. d4 {[%clk 00:44:57]} {[%emt
00:00:08]} d5 {[%clk 00:42:31]} {[%emt 00:01:22]} 7. Nc3 {[%clk 00:44:03]}
{[%emt 00:01:04]} Nxc3 {[%clk 00:39:10]} {[%emt 00:03:31]} 8. bxc3 {[%clk
00:44:09]} {[%emt 00:00:03]} O-O {[%clk 00:39:14]} {[%emt 00:00:06]} 9. Bd3
{[%clk 00:42:08]} {[%emt 00:02:11]} Nc6 {[%clk 00:36:49]} {[%emt 00:02:35]} 10.
Qc2 {[%clk 00:36:10]} {[%emt 00:06:09]} h6 {[%clk 00:35:26]} {[%emt 00:01:33]}
11. cxd5 {[%clk 00:35:06]} {[%emt 00:01:13]} Qxd5 {[%clk 00:35:23]} {[%emt
00:00:14]} 12. Bh7+ {[%clk 00:34:51]} {[%emt 00:00:25]} Kh8 {[%clk 00:35:23]}
{[%emt 00:00:10]} 13. Be4 {[%clk 00:34:55]} {[%emt 00:00:05]} Qh5 {[%clk
00:31:59]} {[%emt 00:03:34]} 14. Bf4 {[%clk 00:25:10]} {[%emt 00:09:56]} Bd6
{[%clk 00:28:27]} {[%emt 00:03:41]} 15. Bxd6 {[%clk 00:24:37]} {[%emt
00:00:43]} cxd6 {[%clk 00:28:35]} {[%emt 00:00:02]} 16. O-O {[%clk 00:24:43]}
{[%emt 00:00:05]} d5 {[%clk 00:22:10]} {[%emt 00:06:35]} 17. Bd3 {[%clk
00:24:50]} {[%emt 00:00:03]} Bg4 {[%clk 00:21:59]} {[%emt 00:00:21]} 18. Nd2
{[%clk 00:24:44]} {[%emt 00:00:15]} Rac8 {[%clk 00:18:17]} {[%emt 00:03:52]} 19.
Qb2 {[%clk 00:23:53]} {[%emt 00:01:01]} Na5 {[%clk 00:16:37]} {[%emt 00:01:50]}
20. Rae1 {[%clk 00:21:28]} {[%emt 00:02:35]} f6 {[%clk 00:10:45]} {[%emt
00:07:50]} 21. Qb1 {[%clk 00:13:25]} Qf7 {[%clk 00:10:18]} {[%emt 00:07:02]} 22.
Bg6 {[%clk 00:12:01]} {[%emt 00:01:35]} Qd7 {[%clk 00:08:50]} {[%emt 00:01:37]}
23. Re3 {[%emt 00:02:06]} f5 {[%emt 00:05:49]} 24. Rfe1 {[%clk 00:07:28]}
{[%emt 00:00:03]} Nc6 {[%emt 00:04:10]} 25. f3 {[%clk 00:02:29]} {[%emt
00:02:20]} f4 {[%emt 00:00:21]} 26. R3e2 {[%emt 00:00:23]} Bf5 {[%clk
00:03:54]} {[%emt 00:00:31]} 27. Bxf5 {[%clk 00:02:42]} {[%emt 00:00:02]} Rxf5
{[%clk 00:03:30]} {[%emt 00:00:34]} 28. Re6 {[%clk 00:02:40]} {[%emt 00:00:12]}
Rcf8 {[%clk 00:02:52]} {[%emt 00:00:48]} 29. Qb5 {[%emt 00:01:27]} Qd8 {[%clk
00:01:32]} {[%emt 00:00:35]} 30. Qxb7 {[%emt 00:00:57]} Na5 {[%clk 00:01:04]}
{[%emt 00:00:02]} 31. Qxa7 {[%clk 00:02:03]} {[%emt 00:00:14]} Nc4 {[%clk
00:01:05]} {[%emt 00:00:09]} 32. Nxc4 {[%clk 00:01:54]} {[%emt 00:00:19]} dxc4
{[%clk 00:01:14]} {[%emt 00:00:02]} 33. Re7 {[%clk 00:01:39]} {[%emt 00:00:25]}
Rg5 {[%emt 00:00:54]} 34. Rf7 {[%emt 00:00:21]} Re8 {[%clk 00:00:46]} {[%emt
00:00:10]} 35. Rxe8+ {[%clk 00:01:00]} {[%emt 00:00:22]} Qxe8 {[%clk 00:00:54]}
{[%emt 00:00:01]} 36. Qe7 {[%clk 00:01:03]} {[%emt 00:00:07]} Qa4 {[%clk
00:00:53]} {[%emt 00:00:11]} 37. Rf8+ {[%clk 00:00:51]} {[%emt 00:00:22]} Kh7
{[%emt 00:00:10]} 38. Qe4+ {[%clk 00:00:48]} {[%emt 00:00:04]} Rg6 {[%emt
00:00:13]} 39. Qb1 {[%emt 00:00:36]} Qa3 {[%clk 00:00:54]} {[%emt 00:00:04]} 40.
Rxf4 {[%clk 00:00:27]} {[%emt 00:00:17]} h5 {[%clk 00:00:45]} {[%emt 00:00:19]}
41. Qc2 {[%clk 00:00:27]} {[%emt 00:00:09]} Kh6 {[%clk 00:00:21]} {[%emt
00:00:35]} 42. Qd2 {[%clk 00:00:34]} {[%emt 00:00:02]} Kh7 {[%emt 00:00:07]} 43.
Re4 {[%clk 00:00:19]} {[%emt 00:00:21]} Rb6 {[%clk 00:00:33]} {[%emt 00:00:05]}
44. Re2 {[%clk 00:00:21]} {[%emt 00:00:09]} Rb1+ {[%clk 00:00:21]} {[%emt
00:00:22]} 45. Kf2 {[%clk 00:00:29]} {[%emt 00:00:01]} Rb5 {[%clk 00:00:21]}
{[%emt 00:00:10]} 46. h4 {[%clk 00:00:29]} {[%emt 00:00:10]} Qd6 {[%clk
00:00:20]} {[%emt 00:00:11]} 47. g3 {[%clk 00:00:36]} {[%emt 00:00:03]} Qd7
{[%clk 00:00:25]} {[%emt 00:00:05]} 48. Kg2 {[%clk 00:00:43]} {[%emt 00:00:04]}
g6 {[%clk 00:00:31]} {[%emt 00:00:03]} 49. Qe1 {[%clk 00:00:50]} {[%emt
00:00:03]} Rb7 {[%clk 00:00:37]} {[%emt 00:00:05]} 50. Qc1 {[%clk 00:00:47]}
{[%emt 00:00:12]} Qc6 {[%clk 00:00:33]} {[%emt 00:00:14]} 51. Qf4 {[%clk
00:00:48]} {[%emt 00:00:10]} Qa4 {[%clk 00:00:32]} {[%emt 00:00:10]} 52. d5
{[%clk 00:00:42]} {[%emt 00:00:17]} Qd1 {[%clk 00:00:35]} {[%emt 00:00:06]} 53.
Qxc4 {[%clk 00:00:40]} {[%emt 00:00:13]} Kh6 {[%clk 00:00:24]} {[%emt
00:00:21]} 54. Qf4+ {[%clk 00:00:46]} {[%emt 00:00:04]} Kh7 {[%clk 00:00:32]}
{[%emt 00:00:01]} 55. Qd2 {[%clk 00:00:50]} {[%emt 00:00:07]} Qa1 {[%clk
00:00:26]} {[%emt 00:00:15]} 56. d6 {[%clk 00:00:57]} {[%emt 00:00:03]} Kg7
{[%clk 00:00:17]} {[%emt 00:00:19]} 57. d7 {[%clk 00:01:04]} {[%emt 00:00:03]}
Rb1 {[%clk 00:00:26]} {[%emt 00:00:02]} 58. Qd4+ {[%clk 00:01:08]} {[%emt
00:00:06]} Kf7 {[%clk 00:00:26]} {[%emt 00:00:10]} 59. Qf4+ {[%clk 00:01:15]}
{[%emt 00:00:03]} Kg7 {[%clk 00:00:33]} {[%emt 00:00:03]} 60. Re7+ {[%clk
00:01:23]} 1-0

[Event "World Women Teams Championship"]
[Site "Sitges, Spain"]
[Date "2021.09.27"]
[Round "1.11"]
[White "Fataliyeva Ulviyya (AZE)"]
[Black "Tania Sachdev (IND)"]
[Result "1-0"]
[TimeControl "40+10"]
[WhiteElo "2310"]
[BlackElo "2339"]

1. d4 {[%clk 00:45:19]} Nf6 {[%clk 00:44:49]} {[%emt 00:00:31]} 2. c4 {[%clk
00:45:26]} {[%emt 00:00:03]} e6 {[%clk 00:44:56]} {[%emt 00:00:04]} 3. Nf3
{[%clk 00:45:19]} {[%emt 00:00:17]} d5 {[%clk 00:44:30]} {[%emt 00:00:35]} 4.
Nc3 {[%emt 00:00:23]} Ne4 {[%clk 00:44:25]} {[%emt 00:00:12]} 5. g3 {[%clk
00:42:19]} {[%emt 00:03:01]} c6 {[%clk 00:42:08]} {[%emt 00:02:27]} 6. Bg2
{[%clk 00:42:02]} {[%emt 00:00:27]} Nxc3 {[%clk 00:40:32]} {[%emt 00:01:45]} 7.
bxc3 {[%clk 00:42:10]} {[%emt 00:00:02]} dxc4 {[%clk 00:40:32]} {[%emt
00:00:11]} 8. Ne5 {[%emt 00:08:44]} Nd7 {[%clk 00:31:10]} {[%emt 00:01:22]} 9.
Nxc4 {[%clk 00:41:45]} {[%emt 00:00:11]} Be7 {[%emt 00:00:22]} 10. O-O {[%clk
00:41:23]} {[%emt 00:00:19]} O-O {[%emt 00:00:06]} 11. Qb3 {[%clk 00:41:16]}
{[%emt 00:00:15]} b5 {[%emt 00:05:47]} 12. Nd2 {[%clk 00:36:36]} {[%emt
00:04:07]} Bb7 {[%clk 00:24:59]} {[%emt 00:01:33]} 13. a4 {[%emt 00:01:42]} a6
{[%clk 00:23:32]} {[%emt 00:00:38]} 14. c4 {[%emt 00:04:39]} Rb8 {[%emt
00:02:09]} 15. Ne4 {[%emt 00:05:48]} Nf6 {[%emt 00:05:42]} 16. Rd1 {[%emt
00:04:10]} Nxe4 {[%clk 00:08:07]} {[%emt 00:01:14]} 17. Bxe4 {[%clk 00:28:54]}
{[%emt 00:00:03]} bxc4 {[%emt 00:02:37]} 18. Qc2 {[%clk 00:26:55]} {[%emt
00:00:33]} h6 {[%emt 00:02:50]} 19. Bg2 {[%emt 00:01:01]} a5 {[%emt 00:01:25]}
20. Bf4 {[%emt 00:00:39]} Bd6 {[%clk 00:04:58]} {[%emt 00:00:14]} 21. Bxd6
{[%clk 00:24:03]} {[%emt 00:00:01]} Qxd6 {[%clk 00:05:06]} {[%emt 00:00:01]} 22.
Qxc4 {[%emt 00:02:45]} Ba8 {[%emt 00:00:16]} 23. Qc5 {[%emt 00:00:58]} Qxc5
{[%clk 00:01:46]} {[%emt 00:00:02]} 24. dxc5 {[%clk 00:24:11]} {[%emt
00:00:01]} Rb2 {[%clk 00:01:52]} {[%emt 00:00:04]} 25. e3 {[%emt 00:00:25]}
Rfb8 {[%clk 00:01:23]} {[%emt 00:00:27]} 26. Be4 {[%emt 00:00:16]} R2b4 {[%emt
00:01:05]} 27. Bd3 {[%emt 00:00:05]} Kf8 {[%emt 00:00:14]} 28. Rd2 {[%clk
00:23:30]} {[%emt 00:00:06]} Rd8 {[%emt 00:00:54]} 29. Kf1 {[%clk 00:21:51]}
{[%emt 00:01:17]} Rd5 {[%emt 00:00:37]} 30. Rc1 {[%clk 00:20:20]} {[%emt
00:01:13]} Bb7 {[%emt 00:00:44]} 31. Ke2 {[%clk 00:20:03]} {[%emt 00:00:16]}
Ke7 {[%clk 00:00:17]} {[%emt 00:00:25]} 32. Ra2 {[%clk 00:19:17]} {[%emt
00:00:55]} e5 {[%clk 00:00:13]} {[%emt 00:00:15]} 33. f3 {[%clk 00:19:05]}
{[%emt 00:00:22]} Bc8 {[%clk 00:00:20]} {[%emt 00:00:03]} 34. Be4 {[%clk
00:19:02]} {[%emt 00:00:12]} Ba6+ {[%emt 00:00:23]} 35. Kf2 {[%clk 00:18:29]}
{[%emt 00:00:25]} Rd8 {[%emt 00:00:24]} 36. Bxc6 {[%clk 00:18:17]} {[%emt
00:00:09]} Bc4 {[%emt 00:00:26]} 37. Rac2 {[%emt 00:00:27]} Bb3 {[%clk
00:00:13]} {[%emt 00:00:06]} 38. Rb2 {[%clk 00:17:53]} {[%emt 00:00:16]} Rdb8
{[%emt 00:00:41]} 39. Bb5 {[%emt 00:00:08]} Be6 {[%emt 00:01:23]} 40. Rd2
{[%clk 00:16:13]} {[%emt 00:00:05]} f5 {[%emt 00:00:26]} 41. c6 {[%clk
00:15:52]} {[%emt 00:00:15]} Bb3 {[%emt 00:00:53]} 42. c7 {[%clk 00:15:17]}
{[%emt 00:00:07]} 1-0